Cogmind - Beta 15 @@@ ROGUE MODE // 2025.07.19 @ 13:21:20 Player: Singularius Result: Destroyed by RT-7UQ(R) with Subdweller Shrapnel Launcher Performance ------------- Evolutions (0) 0 Regions Visited (2) 400 Robots Destroyed (23) 115 Value Destroyed (654) 654 Prototype IDs (0) 0 Alien Tech Used (0) 0 Bonus (0) 0 TOTAL SCORE: 1169 Bonus ------- None Cogmind --------- Core Integrity 0/250 Matter 280/300 Energy 200/200 System Corruption 1% Temperature Cool (0) Movement Rolling (110) Location -10/Subcaves Parts ------- > --- POWER (1) -------- Subdweller Power Source > --- PROPULSION (2) --- Subdweller Monowheel Subdweller Monowheel > --- UTILITY (2) ------ Large Storage Unit > --- WEAPON (2) ------- Barrage Gun Battle Cannon > --- INVENTORY (15) --- Ion Engine Aluminum Leg Aluminum Leg Improved Heat Sink Terrain Scan Processor Hacking Suite Medium Laser Beam Cannon Subdweller Beam Cannon Assault Rifle Assault Rifle Battle Rifle Battle Rifle Mining Laser Ripper Peak State ------------ > --- POWER ------------ Subdweller Power Source > --- PROPULSION ------- Subdweller Monowheel Subdweller Monowheel > --- UTILITY ---------- Large Storage Unit > --- WEAPON ----------- Barrage Gun Battle Cannon > --- INVENTORY -------- Ion Engine Aluminum Leg Aluminum Leg Improved Heat Sink Terrain Scan Processor Hacking Suite Medium Laser Beam Cannon Subdweller Beam Cannon Assault Rifle Assault Rifle Battle Rifle Battle Rifle Mining Laser Ripper [Rating: 14] Favorites ----------- Power Ion Engine Engine Ion Engine Propulsion Light Treads Treads Light Treads Leg Aluminum Leg Wheel Subdweller Monowheel Utility Improved Terrain Scanner Device Improved Terrain Scanner Storage Large Storage Unit Weapon Assault Rifle Energy Gun Medium Laser Ballistic Gun Assault Rifle Ballistic Cannon Light Cannon Special Weapon Mining Laser Build | -11 -10 -10 ------- Run | Yrd Mat Sub Slots Evolved . | . . . Power . | . . . Propulsion . | . . . Utility . | . . . Weapon . | . . . Parts Attached 21 | 7 3 11 Power 2 | 1 . 1 Engine 2 | 1 . 1 Core . | . . . Reactor . | . . . Propulsion 9 | 2 . 7 Treads 4 | 2 . 2 Leg 3 | . . 3 Wheel 2 | . . 2 Hover . | . . . Flight . | . . . Utility 3 | 2 1 . Device 1 | 1 . . Storage 2 | 1 1 . Processor . | . . . Hackware . | . . . Protection . | . . . Artifact . | . . . Weapon 7 | 2 2 3 Energy Gun 1 | 1 . . Energy Cannon . | . . . Ballistic Gun 3 | 1 . 2 Ballistic Cannon 2 | . 1 1 Launcher . | . . . Special Weapon 1 | . 1 . Impact Weapon . | . . . Slashing Weapon . | . . . Piercing Weapon . | . . . Special Melee Weapon . | . . . Unidentified Prototypes . | . . . Parts Lost 8 | . . 8 Power . | . . . Propulsion 5 | . . 5 Utility 1 | . . 1 Weapon 2 | . . 2 Highest Loss Streak 3 | . . 3 To Critical Strikes . | . . . Average Backups 12 | 4 10 13 Power . | . 1 1 Propulsion 3 | 3 3 3 Utility 2 | . 2 3 Weapon 4 | . 3 6 Tool/Special . | . . . Unused Backups 13 | . 1 12 Power 1 | . . 1 Propulsion 2 | . . 2 Utility 4 | . 1 3 Weapon 6 | . . 6 Tool/Special . | . . . Average Slot Usage (%) 97 | . 100 95 Engine 14 | . 14 14 Treads 16 | . 28 10 Leg 7 | . . 10 Wheel 3 | . . 5 Device 11 | . 14 10 Storage 14 | . 14 14 Energy Gun 1 | . 4 . Ballistic Gun 13 | . 12 13 Ballistic Cannon 12 | . 9 14 Peak Build Rating 14 | 9 11 14 Average Rating 10 | 5 10 11 On Entrance 6 | . 9 11 Naked Turns . | . . . Heaviest Build 31 | 15 31 31 Greatest Support 40 | 40 40 40 Greatest Overweight (x) 4 | 4 . 2 Average Overweight (x) . | 2 . . Largest Inventory Capacity 15 | 8 15 15 Average Capacity 13 | 7 12 15 Most Carried 15 | 6 15 15 Average Carried 12 | 4 10 13 Final Capacity 15 | 8 15 15 Final Carried 15 | 5 15 15 Class Distribution -------------------- 100% | Mutant Dominant Class ---------------- Mutant | -10/Materials Mutant | -10/Subcaves Resources | -11 -10 -10 ----------- Run | Yrd Mat Sub Matter Collected 883 | 291 166 426 Remotely . | . . . Salvage Created 693 | 93 365 235 Parts 50 | 11 31 8 Haulers Intercepted 1 | . 1 . Recyclers Shooed . | . . . Parts Field Recycled . | . . . Retrieved Matter . | . . . Parts Self-Destructed 2 | . . 2 Prevented . | . . . Kills | -11 -10 -10 ------- Run | Yrd Mat Sub Combat Hostiles Destroyed 15 | . 7 8 Guns 4 | . . 4 Cannons 11 | . 7 4 Classes Destroyed 7 | 1 4 2 Builder 1 | . 1 . Tunneler 5 | 4 1 . Hauler 1 | . 1 . Operator 1 | . 1 . Grunt 8 | . 7 1 Sentry 1 | . . 1 Subdweller 6 | . . 6 Best Kill Streak 3 | 2 3 2 Combat Bots Only 2 | . 2 2 Max Kills in Single Turn 1 | 1 1 1 Gunslinging . | . . . Exploded . | . . . Melee . | . . . Uniques/NPCs Destroyed . | . . . Combat | -11 -10 -10 -------- Run | Yrd Mat Sub Hostile Shots Fired 87 | . 16 71 Missed 27 | . 4 23 Hits 60 | . 12 48 Projectile 60 | . 12 48 AOE 1 | . . 1 Critical Strikes 2 | . . 2 Damage Taken 1339 | . 157 1182 Core 256 | . 33 223 Absorbed by Shields . | . . . Core Remaining (%) 100 | 100 . . Volleys Fired 74 | 7 21 46 Largest 2 | 2 2 2 Hottest 100 | 70 100 100 Shots Fired 147 | 14 42 91 Gun 81 | 14 22 45 Cannon 64 | . 19 45 Launcher . | . . . Special 2 | . 1 1 Kinetic 136 | 7 39 90 Thermal 11 | 7 3 1 Explosive . | . . . Electromagnetic . | . . . Robot Hit Streak 21 | 5 8 21 Robot Miss Streak 3 | 3 1 2 Penetration Max . | . . . Secondary Targets . | . . . Shots Hit Robots 112 | 9 29 74 Core Hits 36 | 4 16 16 Critical Kills . | . . . Critical Parts Destroyed . | . . . Critical Strikes 5 | 1 2 2 Burn 1 | 1 . . Blast 4 | . 2 2 Melee Attacks . | . . . Impact . | . . . Slashing . | . . . Piercing . | . . . Sneak Attacks . | . . . Combat Hostiles . | . . . Follow-up Attacks . | . . . Damage Inflicted 1734 | 124 461 1149 Guns 820 | 124 157 539 Cannons 914 | . 304 610 Explosions . | . . . Melee . | . . . Ramming . | . . . Kinetic 1672 | 62 461 1149 Thermal 62 | 62 . . Explosive . | . . . Electromagnetic . | . . . Impact . | . . . Slashing . | . . . Piercing . | . . . Highest Corruption 1 | . 1 1 Average Corruption 1 | . 1 1 Corruption Purged . | . . . Corruption Blocked . | . . . Effects 12 | . 1 11 Message Errors 2 | . . 2 Matter Fused 2 | . . 2 Heat Flow Errors 3 | . . 3 Energy Discharges 3 | . . 3 Data Loss (minor) 1 | . . 1 Misfires 1 | . 1 . Overload Shots . | . . . Overflow Damage 5 | . . 5 Projectiles 5 | . . 5 Explosions . | . . . Melee . | . . . Knockbacks 14 | . 2 12 Impact . | . . . Kinetic 14 | . 2 12 Secondary . | . . . Self-Inflicted Damage . | . . . Shots . | . . . Rammed . | . . . Targets Rammed . | . . . Kicked . | . . . Crushed . | . . . Highest Temperature 217 | 36 20 217 Average Temperature 34 | 15 5 97 Received Heat Transfer 297 | . 93 204 Siege Activations . | . . . Martial Activations . | . . . Shielding Activations . | . . . Robots Disrupted . | . . . Combat Hostiles . | . . . Robots Corrupted . | . . . Combat Hostiles . | . . . Parts Fried . | . . . Impact Corruptions . | . . . Robots Melted . | . . . Combat Hostiles . | . . . Parts Melted . | . . . Heat Transferred 259 | 259 . . Parts Sabotaged . | . . . Parts Stolen . | . . . Parts Stripped . | . . . Power Chain Reactions . | . . . Alert | -11 -10 -10 ------- Run | Yrd Mat Sub Maximum Alert Level . | . . . Low Security (%) 100 | 100 100 . Level 1 . | . . . Level 2 . | . . . Level 3 . | . . . Level 4 . | . . . Level 5 . | . . . High Security . | . . . Max Security . | . . . Peak Influence 105 | 5 105 . Initial . | . . . Average 30 | . 38 . Influence Increases 294 | 20 234 40 Destroy 0b10 Robot/C 180 | . 140 40 Destroy 0b10 Robot/NC 40 | 20 20 . Destroy Leader 42 | . 42 . Successful Hack 30 | . 30 . Destroy Structure 2 | . 2 . Influence Decreases 294 | 20 227 47 Entered New Map 4 | . . 4 Time Decay 290 | 20 227 43 Squads Dispatched 1 | . 1 . Investigation 1 | . 1 . Extermination . | . . . Reinforcement . | . . . Assault . | . . . Garrison . | . . . Intercept . | . . . Searches Triggered . | . . . Construction Impeded . | . . . Haulers Reinforced . | . . . Active Scanning Responses . | . . . Cargo Convoy Interrupts . | . . . Stealth | -11 -10 -10 --------- Run | Yrd Mat Sub Distress Signals 1 | . 1 . Communications Jammed . | . . . Distress Signals . | . . . Times Spotted 20 | . 11 9 Peak Tracking Total 3 | . 3 2 Tactical Retreats . | . . . Traps | -11 -10 -10 ------- Run | Yrd Mat Sub Traps Triggered 5 | . 2 3 Indirectly . | . . . Trap Hack Attempts . | . . . Triggered . | . . . Disarmed . | . . . Reprogrammed . | . . . Reused . | . . . Traps Extracted . | . . . Installed . | . . . Triggered . | . . . Machines | -11 -10 -10 ---------- Run | Yrd Mat Sub Machines Disabled . | . . . Max in Single Turn . | . . . Machines Repaired . | . . . Machines Dismantled . | . . . Machines Sabotaged . | . . . Overloaded Fab Kills . | . . . Hacking | -11 -10 -10 --------- Run | Yrd Mat Sub Machines Accessed 4 | . 4 . Terminals 4 | . 4 . Fabricators . | . . . Repair Stations . | . . . Recycling Units . | . . . Scanalyzers . | . . . Garrison Access . | . . . Total Hacks 13 | . 13 . Successful 6 | . 6 . Failed 7 | . 7 . Catastrophic 3 | . 3 . Database Lockouts . | . . . Manual 9 | . 9 . Terminals 13 | . 13 . Fabricators . | . . . Repair Stations . | . . . Recycling Units . | . . . Scanalyzers . | . . . Garrison Access . | . . . Terminal Hacks 3 | . 3 . Transport Status 1 | . 1 . Investigation Status 1 | . 1 . Registered Components 1 | . 1 . Fabricator Hacks . | . . . Repair Station Hacks . | . . . Recycling Unit Hacks . | . . . Scanalyzer . | . . . Garrison Access Hacks . | . . . Unauthorized Hacks 3 | . 3 . Terminals 3 | . 3 . Botnet 3 | . 3 . Fabricators . | . . . Repair Stations . | . . . Recycling Units . | . . . Scanalyzers . | . . . Garrison Access . | . . . Data Cores Recovered 1 | . 1 . Used 1 | . 1 . Hacking Detections 4 | . 4 . Full Trace Events . | . . . Feedback Events . | . . . Feedback Blocked . | . . . Robot Schematics Acquired . | . . . Robots Built . | . . . Authchips . | . . . Time . | . . . Total Robot Build Rating . | . . . Part Schematics Acquired . | . . . Parts Built . | . . . Authchips . | . . . Time . | . . . Total Part Build Rating . | . . . Parts Repaired . | . . . Time . | . . . Parts Recycled . | . . . Recycled Matter . | . . . Retrieved Matter . | . . . Retrieved Components . | . . . Parts Scanalyzed . | . . . Part Schematics Acquired . | . . . Parts Damaged . | . . . Bothacking | -11 -10 -10 ------------ Run | Yrd Mat Sub Used RIF Installer . | . . . Robots Hacked . | . . . Non-combat . | . . . Combat . | . . . Robot Hacks Applied . | . . . Relay Couplers Released . | . . . Fabnet Peak Effective % . | . . . Robots Rewired . | . . . Allies Hacked . | . . . Hacks Repelled . | . . . Allies | -11 -10 -10 -------- Run | Yrd Mat Sub Total Allies . | . . . Largest Group . | . . . Highest-Rated Group . | . . . Highest-Rated Ally . | . . . Total Orders . | . . . Ally Attacks . | . . . Total Damage . | . . . Kills . | . . . Allies Corrupted . | . . . Allies Melted . | . . . Intel | -11 -10 -10 ------- Run | Yrd Mat Sub Active Infowar (turns) 2072 | 86 777 1209 Terrain 2072 | 86 777 1209 Robot Analysis Total . | . . . Derelict Logs Recovered 1 | . . 1 Drone Launches . | . . . Drone Recoveries . | . . . Exploration | -11 -10 -10 ------------- Run | Yrd Mat Sub Turns Passed 2555 | 213 777 1565 Spaces Moved 1372 | 82 391 899 Core 57 | 57 . . Treads 724 | 25 391 308 Legs 296 | . . 296 Wheels 295 | . . 295 Hover . | . . . Flight . | . . . Fastest Speed 50 | 50 160 110 Average Speed 158 | 207 160 153 Slowest Speed 260 | 250 160 260 Overloaded Moves . | . . . Propulsion Burnouts . | . . . Robots Hopped . | . . . Potential Cave-ins . | . . . Cave-ins Triggered . | . . . Exploration Rate (%) 42 | 6 57 65 Regions Visited 2 Branch Regions 1 Pre-discovered Areas . | . . . Known Exits Taken . | . . . Unknown Exits Taken 2 | 1 1 . Scrap Searched 2 | . . 2 Spaces Dug 1 | . 1 . Terrain Destroyed 1 | . 1 . Melee . | . . . Projectile 1 | . 1 . AOE . | . . . Terrain Rammed . | . . . Walls Destroyed . | . . . Machines Disabled . | . . . Actions | -11 -10 -10 --------- Run | Yrd Mat Sub Total 1596 | 108 499 989 Wait 97 | 6 71 20 Move 1370 | 81 390 899 Hop . | . . . Pick Up 25 | 7 11 7 Fast Attach 6 | 5 . 1 Attach 8 | 2 . 6 Detach . | . . . Swap 10 | . 4 6 Drop 6 | . 2 4 Fire 74 | 7 21 46 Melee . | . . . Ram . | . . . Kick . | . . . Crush . | . . . Escape Stasis . | . . . Rewire . | . . . Trap . | . . . Miscellaneous . | . . . Route ------- -11/Scrapyard -10/Materials (discovered 3 exits: [*Mat] / [*Min] / [*Sub]) -10/Subcaves (discovered 1 exit: [*Mat]) History --------- Turn | Location | Event 5 | -11/Scrapyard | Discovered new exit (range 16) 214 | -11/Scrapyard | Entered Materials 310 | -10/Materials | Build established: Mutant 315 | -10/Materials | Discovered new exit (range 8) 428 | -10/Materials | Discovered new exit (range 6) 712 | -10/Materials | Discovered new exit (range 3) 814 | -10/Materials | Derelicts attacked the area 991 | -10/Materials | Entered Subcaves 1000 | -10/Subcaves | Ambushed by Subdwellers from Twisted Machinery 1153 | -10/Subcaves | A swath of the cavern ceiling suddenly collapsed 1170 | -10/Subcaves | Shifting Twisted Machinery released Battle Cannon 1561 | -10/Subcaves | Core integrity fell below 50% 2239 | -10/Subcaves | Lost 3 parts (2n1u) 2312 | -10/Subcaves | A swath of the cavern ceiling suddenly collapsed 2332 | -10/Subcaves | Discovered new exit (range 9) 2451 | -10/Subcaves | Learned Materials emergency access door positions 2556 | -10/Subcaves | Destroyed by RT-7UQ(R) with Subdweller Shrapnel Launcher Last Messages --------------- 02233_ Acquired 67 matter. 02236_ Searching scrap... 02236_ Found Ripper. 02236_ Found Sub. Monowheel. 02236_ Found 55 Matter. 02237_ Acquired 43 matter. 02238_ Acquired Sub. Monowheel. 02242_ Dropped Lgt. Treads. 02243_ Acquired Ripper. 02251_ System corrupted: Component data lost. A swath of the cavern ceiling suddenly collapses. 02332_ EXIT=FOUND 02451_ Acquired derelict log, extracted data. Data stored: Materials emergency access points. 02455_ System corrupted: Energy discharge (-65). 02468_ Dropped Ion Engine. 02472_ System corrupted: Energy discharge (-52). 02493_ Acquired 9 matter. 02507_ System corrupted: Heat flow error (+257). Map ----- +----------------------------------------------------+ | ### #????????#??????????????????????????????? | | # ####??#??????????????????#####??????????# | | ! & # "#?????????????????????# ##????????## | | ! #"##????????????????????# ######??## | | ### """#"#????????????????????# # ### | | #?####""#"##????????????????????# ## | | #??##"" #""#????????????????????# ### | | ##??#""#"""##????????????????????# #?## | | ##???##""#""##????????????????????# #??## ### | | ??????##"""##?????????????????????# ##???# ##? | | ???????###""##????????????????????# ###??# ## | | ????????"#""# #???????????????????# ##?## # | | ????? ?? ## # #???????????????????# ##?# ## | | ????????###"###???????????????????# ### #? | | ???#????#"" #????##?###???????????#### ##? | | ????????#"""#??## ### ##????????????#### ##? | | ???????#"#"##?## ## ##??????????##### ## | | ???????### #??# ## #??????????# # | | ????????#""##?# #?# ?????????## | | ????????#"""### ### ???????#### ## ## | | ????????#"##" #?# #??###?## ####### | | ???????## " ##?# #### ### ##???# | | ??????## R ### ## ##???## | | ?????## ## #????# | | ?????# #????# | | ????# ## @ ### #????# | | # < #?# ##?## #????# | | # #??## ##### ###???# #????#### | | #### ????## ####???#####?????# #???????#### | | ????###?????#######????????????????####??????????? | | ?????????????????????????????????????????????????? | | ?????????????????????????????????????????????????? | | ?????????????????????????????????????????????????? | | ?????????????????????????????????????????????????? | | ?????????????????????????????????????????????????? | | ?????????????????????????????????????????????????? | | ?????????????????????????????????????????????????? | | ?????????????????????????????????????????????????? | | ?????????????????????????????????????????????????? | | ?????????????????????????????????????????????????? | | ?????????????????????????????????????????????????? | | ?????????????????????????????????????????????????? | | ?????????????????????????????????????????????????? | | ?????????????????????????????????????????????????? | | | | | | | | | | | | | +----------------------------------------------------+ Best States ------------- Heat Dissipation 25 Energy Generation 15 Energy Capacity 250 Matter Stores 300 Matter Capacity 300 Sight Range 16 Terrain Scan Range 16 Terrain Scan Density 10 Evasion (%) 40 Recoil Reduction 2 Item Schematics ----------------- None Robot Schematics ------------------ None Fabricated ------------ Nothing Repaired ---------- Nothing Alien Tech Used ----------------- None Achievements -------------- Quantum Hacking Challenges ------------ None Game ------ Seed ContainmentRecoilDetonator Manual? 0 Play Time 00:19:42 Cumulative 85.9 hours Start 2025.07.19 @ 13:00:13 End 2025.07.19 @ 13:21:20 Sessions 1 Manual Loads 0 Difficulty Rogue Special Mode None Game No. 60 Rogue 60 Adventurer 0 Explorer 0 Win Type - Total 0 Types 0/0/0/0/0/0/0/0/0/0 Lore% 39 Gallery% 37 Achievement% 32 Wizard Run 0 Options --------- Layout 1 ASCII 0 Keyboard 0 Movement Numpad Keybinds 0 Fullscreen 1 Font 24/Smallcaps Map View 50x35 Zoom Use 0% Tactical HUD 1 Map Filters NONE Filters NONE Steam 1 RUN: 2298ebe7-845a-4a40-af27-f208a74ec42e